bitfinex-derivatives/quotes_SOLF0:USTF0_20250901
["timestamp","ask_amount","ask_price","bid_price","bid_amount"]
[1756692746913,127.48,200.21,200.11,7.34]
[1756692747909,0.13,200.22,200.11,7.34]
[1756692750117,0.13,200.22,200.13,7.34]
[1756692752120,127.31,200.27,200.16,7.34]
[1756692752618,127.37,200.27,200.16,7.34]
[1756692753016,76.45527984,200.3,200.21,2.22372113]
[1756692753217,76.45527984,200.3,200.22,7.34]
[1756692753718,76.45527984,200.3,200.24,2.22372113]
[1756692754020,2.35372113,200.36,200.25,7.34]
[1756692754216,127.36,200.35,200.25,7.34]
[1756692754610,0.13,200.32,200.15,7.34]
[1756692754813,2.22372113,200.3,200.18,2.22372113]
[1756692755014,2.35372113,200.3,200.19,7.34]
[1756692756019,0.13,200.3,200.19,7.34]
[1756692757922,0.13,200.33,200.2,7.34]
[1756692758115,38.63,200.33,200.23,7.32]
[1756692761317,38.63,200.33,200.16,4.15419292]
[1756692761318,38.5,200.33,200.17,7.32]
[1756692761524,0.12,200.3,200.17,7.32]
[1756692761822,3.55590617,200.31,200.17,7.32]
[1756692762021,0.12,200.27,200.17,7.32]
[1756692762327,0.12,200.27,200.13,7.32]
[1756692762524,3.55590617,200.28,200.13,7.32]
[1756692762918,0.12,200.27,200.13,7.32]
[1756692763114,0.12,200.24,200.13,7.32]
[1756692763418,8.02,200.23,200.13,7.32]
[1756692764325,0.12,200.22,200.13,7.32]
[1756692766021,3.67590617,200.22,200.13,7.32]
[1756692767322,0.12,200.21,200.08,7.32]
[1756692767526,3.55590617,200.22,200.08,7.32]
[1756692767727,0.12,200.18,200.08,7.32]
[1756692769830,8.02,200.23,200.03,7.32]
[1756692770021,3.80361587,200.22,200.03,7.32]
[1756692770227,0.12,200.2,200.03,7.32]
[1756692770526,0.12,200.22,200.03,7.32]
[1756692770724,0.12,200.2,200.03,7.32]
[1756692771025,3.80228286,200.19,200.03,7.32]
[1756692771229,0.12,200.22,200.03,7.32]
[1756692771529,3.80086361,200.21,200.03,7.32]
[1756692771724,0.12,200.19,200.03,7.32]
[1756692771925,0.12,200.22,200.03,7.32]
[1756692772129,3.80086361,200.21,200.03,7.32]
[1756692772428,3.80086361,200.2,200.03,7.32]
[1756692772629,8.02,200.23,200.03,7.32]
[1756692772828,3.7958161,200.22,200.03,7.32]
[1756692773021,0.12,200.2,200.03,7.32]
[1756692773225,0.12,200.19,200.03,7.32]
[1756692773426,52.24,200.18,200.03,7.32]
[1756692773830,0.12,200.19,200.03,7.32]
[1756692773831,68.92,200.17,200.03,7.32]
[1756692774027,0.12,200.19,200.03,7.32]
[1756692774225,65.78,200.16,200.03,7.32]
[1756692776233,0.12,200.15,200.03,7.32]
[1756692776728,335.68,200.27,200.03,7.32]
[1756692776929,0.12,200.26,200.05,7.32]
[1756692777133,0.12,200.25,200.05,7.32]
[1756692777335,126.92,200.26,200.05,7.32]
[1756692777525,0.12,200.25,200.05,7.32]
[1756692777834,126.92,200.26,200.05,7.32]
[1756692778034,0.12,200.25,200.05,7.32]
[1756692778230,126.92,200.26,200.05,7.32]
[1756692779737,0.12,200.25,200.05,7.32]
[1756692779935,335.68,200.27,200.05,7.32]
[1756692779936,0.12,200.23,200.05,7.32]
[1756692780137,0.12,200.23,200.06,7.32]
[1756692780437,38.26,200.22,200.08,4.18617899]
[1756692780635,335.8,200.27,200.09,7.32]
[1756692780830,40.46,200.26,200.09,11.50617899]
[1756692781131,40.46,200.26,200.1,7.32]
[1756692781330,0.12,200.25,200.1,7.32]
[1756692781733,40.46,200.26,200.1,7.32]
[1756692782134,0.12,200.25,200.1,7.32]
[1756692782631,0.12,200.39,200.11,7.32]
[1756692782833,33.99377817,200.38,200.11,7.32]
[1756692783039,0.12,200.35,200.11,7.32]
[1756692783231,18.87377817,200.34,200.11,7.32]
[1756692783431,15.0,200.32,200.11,7.32]
[1756692783730,0.12,200.3,200.11,7.32]
[1756692784036,0.12,200.27,200.11,7.32]
[1756692784242,0.12,200.25,200.11,7.32]
[1756692784430,128.66,200.24,200.11,7.32]
[1756692786738,335.8,200.26,200.11,7.32]
[1756692787539,15.0,200.42,200.11,7.32]
[1756692787540,335.8,200.38,200.12,7.32]
[1756692787738,335.8,200.38,200.11,15.14617899]
[1756692787739,0.12,200.36,200.13,7.32]
[1756692788341,129.7,200.37,200.13,7.32]
[1756692788530,0.12,200.35,200.13,7.32]
[1756692788735,0.12,200.36,200.13,7.32]
[1756692789134,129.7,200.37,200.13,7.32]
[1756692789342,0.12,200.34,200.13,7.32]
[1756692789538,0.12,200.31,200.13,7.32]
[1756692789735,0.12,200.29,200.13,7.32]
[1756692790240,129.7,200.3,200.13,7.32]
[1756692790441,0.12,200.29,200.13,7.32]
[1756692790741,129.7,200.3,200.13,7.32]
[1756692790937,0.12,200.29,200.13,7.32]
[1756692791138,0.12,200.28,200.13,7.32]
[1756692792036,15.0,200.29,200.13,7.32]
[1756692792240,15.0,200.29,200.05,7.95]
[1756692792441,0.12,200.26,200.05,7.95]
[1756692792742,81.98,200.26,200.1,7.95]
[1756692792943,0.12,200.25,200.1,7.95]
[1756692793645,46.06,200.24,200.1,7.95]
[1756692794442,0.12,200.23,200.1,7.95]
[1756692795341,46.06,200.24,200.1,7.95]
[1756692795941,0.12,200.23,200.1,7.95]
[1756692796141,0.12,200.23,200.03,7.95]
[1756692796843,15.0,200.24,200.03,7.95]
[1756692797042,0.12,200.22,200.03,7.95]
[1756692797439,130.06,200.23,200.03,7.95]
[1756692797838,0.12,200.23,200.03,7.95]
[1756692798144,0.12,200.21,200.03,7.95]
[1756692798346,76.4,200.2,200.03,7.95]
[1756692798543,335.8,200.3,200.03,7.95]
[1756692798738,134.30205395,200.29,200.05,7.95]
[1756692798945,15.0,200.27,200.01,7.95]
[1756692799144,0.12,200.24,200.01,7.95]
[1756692799347,127.66205395,200.23,200.01,7.95]
[1756692799547,0.12,200.22,200.01,7.95]
[1756692799747,130.84,200.21,200.01,7.95]
[1756692799946,0.12,200.2,200.01,7.95]
[1756692800145,0.12,200.18,200.01,7.95]
[1756692800445,78.04,200.17,200.01,7.95]
[1756692801356,0.12,200.16,200.01,7.95]
[1756692801946,0.12,200.26,200.01,7.95]
[1756692802152,0.12,200.24,200.01,7.95]
[1756692802452,83.1,200.25,200.01,7.95]
[1756692802652,0.12,200.23,200.01,7.95]
[1756692802851,51.04,200.22,200.01,7.95]
[1756692803047,51.16,200.21,200.01,7.95]
[1756692803954,28.78,200.2,200.01,7.95]
[1756692804453,28.78,200.2,200.02,7.95]
[1756692805555,0.12,200.21,200.02,7.95]
[1756692805745,5.04,200.2,200.02,7.95]
[1756692805943,5.04,200.2,200.03,7.95]
[1756692806352,5.04,200.2,200.03,12.14107015]
[1756692806551,0.13,200.29,200.06,7.95]
[1756692806854,7.76688403,200.28,200.06,7.95]
[1756692807055,0.13,200.26,200.07,12.14107015]
[1756692807351,0.13,200.26,200.08,7.95]
[1756692807544,4.14,200.28,200.08,7.95]
[1756692807747,350.8,200.3,200.08,7.95]
[1756692807748,0.13,200.26,200.08,7.95]
[1756692807949,0.13,200.26,200.09,7.95]
[1756692808145,57.86,200.25,200.1,7.95]
[1756692808554,112.8,200.25,200.1,7.95]
[1756692809853,112.8,200.25,200.11,7.95]
[1756692810651,130.79,200.26,200.11,7.95]
[1756692811552,0.13,200.26,200.11,7.95]
[1756692811748,56.51,200.26,200.12,4.19107015]
[1756692812059,56.51,200.26,200.13,7.95]
[1756692812557,0.13,200.25,200.13,7.95]
[1756692814646,56.38,200.26,200.13,7.95]
[1756692814852,0.13,200.25,200.13,7.95]
[1756692815454,56.38,200.26,200.13,7.95]
[1756692816053,3.62580338,200.25,200.13,7.95]
[1756692816249,56.38,200.26,200.13,7.95]
[1756692816446,0.13,200.24,200.13,7.95]
[1756692816654,3.62630609,200.25,200.13,7.95]
[1756692816655,0.13,200.25,200.13,7.95]
[1756692816858,56.38,200.26,200.13,7.95]
[1756692817054,0.13,200.24,200.13,7.95]
[1756692818358,0.13,200.25,200.13,7.95]
[1756692818558,56.38,200.26,200.13,7.95]
[1756692818857,0.13,200.24,200.13,7.95]
[1756692819152,0.13,200.25,200.13,7.95]
[1756692819854,56.38,200.26,200.13,7.95]
[1756692820051,3.62722996,200.25,200.13,7.95]
[1756692820352,56.38,200.26,200.13,7.95]
[1756692820560,3.62604959,200.25,200.13,7.95]
[1756692820757,56.38,200.26,200.13,7.95]
[1756692820957,0.13,200.24,200.13,7.95]
[1756692821253,0.13,200.25,200.13,7.95]
[1756692821855,3.62622026,200.24,200.13,7.95]
[1756692822053,0.13,200.25,200.13,7.95]
[1756692822356,0.13,200.23,200.04,7.79]
[1756692822655,0.13,200.21,200.04,7.79]
[1756692823160,56.38,200.26,200.04,7.79]
[1756692823355,3.62543154,200.25,200.04,7.79]
[1756692823664,0.13,200.23,200.04,7.79]
[1756692823858,0.13,200.21,200.04,7.79]
[1756692824057,56.38,200.26,200.04,7.79]
[1756692824058,0.13,200.25,200.04,7.79]
[1756692824260,3.62511323,200.24,200.04,7.79]
[1756692824557,3.62511323,200.23,200.04,7.79]
[1756692824860,0.13,200.21,200.04,7.79]
[1756692825056,71.38,200.26,200.04,7.79]
[1756692825255,0.13,200.24,200.04,7.79]
[1756692825453,0.13,200.22,200.04,7.79]
[1756692825758,0.13,200.2,200.04,7.79]
[1756692826462,42.13,200.2,200.05,7.79]
[1756692829965,92.22,200.19,200.05,7.79]
[1756692830765,92.22,200.19,200.05,4.19474937]
[1756692830965,335.93,200.24,200.06,11.98474937]
[1756692831259,335.93,200.24,200.07,7.79]
[1756692831464,129.68,200.23,200.07,7.79]
[1756692832265,0.13,200.22,200.07,7.79]
[1756692832964,0.13,200.22,200.07,4.19474937]
[1756692833158,0.13,200.22,200.08,7.79]
[1756692833665,0.13,200.22,200.09,4.19474937]
[1756692833866,0.13,200.22,200.1,7.79]
[1756692834065,0.13,200.22,200.1,11.98474937]
[1756692834365,0.13,200.22,200.11,7.79]
[1756692834567,335.8,200.24,200.11,7.79]
[1756692835567,0.13,200.23,200.11,7.79]
[1756692837867,335.8,200.24,200.11,7.79]
[1756692838673,2.22505665,200.19,200.11,7.79]
[1756692838875,129.32,200.18,200.11,7.79]
[1756692839875,2.22505665,200.16,200.06,7.79]
[1756692841272,129.32,200.18,200.06,7.79]
[1756692841273,2.35505665,200.13,200.06,7.79]
[1756692842270,0.13,200.1,200.0,4.19474937]
[1756692842472,21.83,200.1,200.01,7.79]
[1756692842774,23.18,200.12,200.01,7.79]
[1756692844678,23.31,200.12,200.01,7.79]
[1756692845773,2.22505665,200.1,200.01,7.79]
[1756692846584,26.80505665,200.1,200.01,7.79]
[1756692846775,2.22505665,200.11,200.01,7.79]
[1756692847183,2.56,200.1,200.01,7.79]
[1756692850393,0.13,200.09,200.01,7.79]
[1756692852191,5.11,200.09,200.01,7.79]
[1756692852788,7.28,200.09,200.01,7.79]
[1756692852983,9.46,200.1,200.01,7.79]
[1756692853494,0.13,200.09,200.01,7.79]
[1756692854091,2.54,200.1,200.01,7.79]
[1756692854290,0.13,200.14,200.03,7.42]
[1756692854591,0.13,200.18,200.06,7.42]
[1756692854893,0.13,200.18,200.09,7.42]
[1756692855591,96.54,200.21,200.09,7.42]
[1756692856791,96.54,200.21,200.12,7.42]
[1756692856987,0.13,200.22,200.12,7.42]
[1756692857496,335.8,200.24,200.12,7.42]
[1756692857790,335.8,200.24,200.14,7.42]
[1756692859593,464.5,200.24,200.14,7.42]
[1756692859790,335.8,200.24,200.17,7.42]
[1756692860089,128.64,200.28,200.17,7.42]
[1756692860291,2.22505665,200.32,200.2,7.42]
[1756692860493,50.94505665,200.32,200.2,7.42]
[1756692860993,50.94505665,200.32,200.23,7.42]
[1756692861790,0.13,200.33,200.23,7.42]
[1756692862794,0.13,200.33,200.26,7.42]
[1756692863094,128.52,200.35,200.26,7.42]
[1756692866100,128.52,200.35,200.28,2.22505665]
[1756692866394,128.52,200.35,200.29,7.42]
[1756692866599,128.52,200.35,200.25,2.22505665]
[1756692866797,0.1,200.34,200.25,7.42]
[1756692868900,130.74505665,200.35,200.25,7.42]
[1756692869199,0.1,200.31,200.22,2.22505665]
[1756692869400,0.1,200.31,200.21,7.42]
[1756692873505,0.1,200.31,200.22,7.42]
[1756692873907,43.64,200.32,200.22,7.42]
[1756692874501,335.86,200.36,200.27,2.22505665]
[1756692874704,335.86,200.36,200.28,7.42]
[1756692876403,335.86,200.36,200.31,7.42]
[1756692876604,128.06,200.38,200.31,7.42]
[1756692879411,0.1,200.39,200.31,7.42]
[1756692879612,44.64,200.39,200.31,7.42]
[1756692882511,2.22505665,200.36,200.21,7.98]
[1756692882710,0.1,200.35,200.24,7.98]
[1756692890716,0.1,200.35,200.27,7.98]
[1756692890916,0.1,200.39,200.29,2.22505665]
[1756692891113,0.1,200.39,200.3,7.98]
[1756692891309,0.1,200.39,200.31,7.98]
[1756692891512,50.24,200.42,200.31,7.98]
[1756692891922,2.32505665,200.41,200.31,7.98]
[1756692893114,0.1,200.4,200.31,7.98]
[1756692895425,2.22505665,200.38,200.31,7.98]
[1756692895625,0.1,200.34,200.27,7.98]
[1756692895919,10.6,200.34,200.27,7.98]
[1756692896714,10.6,200.34,200.1,2.22505665]
[1756692896715,0.1,200.31,200.2,7.98]
[1756692897213,2.22505665,200.32,200.2,7.98]
[1756692897916,0.1,200.35,200.26,7.98]
[1756692898122,2.32,200.37,200.26,7.98]
[1756692898316,2.22505665,200.38,200.28,2.22505665]
[1756692898514,2.22505665,200.38,200.29,7.98]
[1756692899324,0.1,200.37,200.29,7.98]
[1756692901427,0.1,200.37,200.22,2.22505665]
[1756692901428,0.1,200.37,200.23,7.98]
[1756692901628,0.1,200.33,200.23,7.98]
[1756692901829,2.22505665,200.32,200.23,7.98]
[1756692902520,13.68,200.33,200.23,7.98]
[1756692903724,18.06,200.33,200.23,7.98]
[1756692905027,0.1,200.3,200.23,7.98]
[1756692905727,24.24505665,200.31,200.23,7.98]
[1756692905922,2.32505665,200.34,200.23,7.98]
[1756692906433,0.1,200.34,200.24,7.98]
[1756692906634,5.16,200.34,200.24,7.98]
[1756692906832,0.1,200.43,200.27,7.98]
[1756692907027,2.32505665,200.41,200.3,7.98]
[1756692907230,2.22505665,200.38,200.3,7.98]
[1756692907529,0.1,200.37,200.3,7.98]
[1756692908326,0.1,200.37,200.26,10.20505665]
[1756692908634,0.1,200.37,200.26,7.98]
[1756692908835,0.13,200.34,200.26,7.98]
[1756692909034,13.44,200.33,200.23,2.22505665]
[1756692909233,13.44,200.33,200.23,10.20505665]
[1756692910834,13.44,200.33,200.24,7.98]
[1756692911530,13.44,200.33,200.25,2.22505665]
[1756692911735,13.44,200.33,200.26,7.98]
[1756692912134,0.13,200.32,200.22,10.20505665]
[1756692912832,2.22505665,200.31,200.22,7.98]
[1756692913038,0.13,200.3,200.22,7.98]
[1756692913431,0.13,200.27,200.17,7.98]
[1756692914033,2.22505665,200.25,200.17,7.98]
[1756692914233,0.13,200.27,200.17,7.98]
[1756692914435,2.22505665,200.25,200.17,7.98]
[1756692914736,9.14,200.24,200.17,7.98]
[1756692915033,16.12,200.27,200.19,7.98]
[1756692916233,2.22505665,200.26,200.19,7.98]
[1756692917232,2.22505665,200.26,200.12,4.19474937]
[1756692917440,2.35505665,200.26,200.13,7.98]
[1756692919335,15.0,200.39,200.13,7.98]
[1756692919538,2.22505665,200.28,200.16,7.98]
[1756692919739,129.72505665,200.28,200.16,7.98]
[1756692920243,0.13,200.24,200.16,7.98]
[1756692920437,2.22505665,200.22,200.16,7.98]
[1756692921343,129.72505665,200.28,200.04,0.86895725]
[1756692921344,2.22505665,200.19,200.11,7.98]
[1756692921642,2.35505665,200.16,200.11,7.98]
[1756692922146,2.22505665,200.16,200.05,7.98]
[1756692923036,2.22505665,200.13,200.05,7.98]
[1756692925144,2.22505665,200.1,199.99,7.98]
[1756692925345,0.13,200.12,199.99,7.98]
[1756692925540,2.22505665,200.1,199.99,7.98]
[1756692926543,8.62,200.09,199.99,7.98]
[1756692927950,10.7,200.09,199.99,7.98]
[1756692929351,10.83,200.09,199.99,7.98]
[1756692930643,12.81,200.09,199.99,7.98]
[1756692931453,14.69,200.09,199.99,7.98]
[1756692932849,0.13,200.09,199.99,10.20505665]
[1756692933049,82.5,200.08,199.89,5.58157199]
[1756692933350,2.22505665,199.91,199.8,7.98]
[1756692933653,2.35505665,199.93,199.8,7.98]
[1756692933849,64.11,199.97,199.8,7.98]
[1756692934048,66.33505665,199.97,199.85,7.98]
[1756692934243,64.11,199.97,199.85,7.98]
[1756692934548,2.35505665,200.01,199.86,7.98]
[1756692934948,2.22505665,200.0,199.86,7.98]
[1756692935751,2.35505665,200.01,199.89,7.98]
[1756692936450,0.13,200.01,199.89,7.98]
[1756692936642,2.35505665,200.01,199.89,7.98]
[1756692937347,2.22505665,199.97,199.89,7.98]
[1756692938247,2.35505665,199.98,199.89,7.98]
[1756692940343,0.13,199.98,199.89,7.98]
[1756692940548,2.22505665,199.97,199.89,7.98]
[1756692941244,2.22505665,199.99,199.89,7.98]
[1756692943152,0.16,200.04,199.89,7.98]
[1756692943153,2.22505665,200.01,199.89,7.98]
[1756692943849,114.98,200.05,199.89,7.98]
[1756692943850,2.22505665,199.98,199.89,7.98]
[1756692944050,2.22505665,199.92,199.81,9.53505665]
[1756692944954,2.22505665,199.92,199.81,7.31]
[1756692945154,2.22505665,199.89,199.81,7.31]
[1756692945353,0.16,199.94,199.81,7.31]
[1756692945354,2.22505665,199.92,199.81,7.31]
[1756692946054,0.16,199.94,199.81,7.31]
[1756692946554,3.56928093,199.95,199.81,7.31]
[1756692946747,2.48,199.96,199.82,7.31]
[1756692947049,2.48,199.96,199.84,3.56928093]
[1756692947253,2.48,199.96,199.85,7.31]
[1756692947452,0.16,200.02,199.88,7.31]
[1756692947951,3.56928093,200.01,199.88,7.31]
[1756692952256,3.56928093,199.98,199.82,3.56928093]
[1756692952557,3.56928093,199.98,199.83,7.31]
[1756692954352,3.56928093,200.02,199.86,7.31]
[1756692956258,3.72928093,200.02,199.86,7.31]
[1756692956561,3.56928093,199.96,199.86,7.31]
[1756692958351,3.56928093,199.96,199.8,3.56928093]
[1756692958352,3.72928093,199.96,199.81,7.31]
[1756692959354,0.16,200.01,199.83,3.56928093]
[1756692959557,3.56928093,200.0,199.84,7.31]
[1756692960268,5.34,200.05,199.87,7.31]
[1756692960459,8.90928093,200.05,199.87,7.31]
[1756692960664,2.26450719,200.04,199.89,3.56928093]
[1756692960866,8.90928093,200.05,199.9,7.31]
[1756692961166,2.26594885,200.04,199.9,7.31]
[1756692961362,8.90928093,200.05,199.9,7.31]
[1756692961660,8.90928093,200.05,199.89,3.56928093]
[1756692961661,0.16,200.01,199.84,7.31]
[1756692961864,3.56928093,199.99,199.84,7.31]
[1756692963365,3.56928093,200.04,199.89,7.31]
[1756692964261,5.18,200.05,199.91,3.56928093]
[1756692964564,5.18,200.05,199.95,7.31]
[1756692966064,0.13,200.04,199.77,12.89157199]
[1756692966271,2.26899414,200.03,199.81,7.31]
[1756692966466,3.56928093,200.01,199.86,7.31]
[1756692966764,2.26899414,200.0,199.86,7.31]
[1756692966966,3.56928093,200.01,199.86,7.31]
[1756692967164,2.26836237,200.0,199.86,7.31]
[1756692967368,2.26836237,199.99,199.86,7.31]
[1756692967564,2.26843695,199.98,199.86,7.31]
[1756692967766,5.83759816,199.97,199.86,7.31]
[1756692967968,0.13,200.02,199.86,7.31]
[1756692968265,3.56928093,200.0,199.86,7.31]
[1756692968774,3.56928093,200.03,199.86,7.31]
[1756692968975,2.27134497,200.02,199.87,3.56928093]
[1756692969180,3.56928093,200.03,199.87,3.56928093]
[1756692969181,3.56928093,200.03,199.88,7.43]
[1756692969468,3.56928093,200.03,199.89,3.56928093]
[1756692969674,2.27230883,200.02,199.9,7.43]
[1756692969874,3.56928093,200.03,199.9,7.43]
[1756692970084,5.18,200.05,199.9,7.43]
[1756692970284,2.27230823,200.04,199.9,7.43]
[1756692970484,335.86,200.07,199.92,3.56928093]
[1756692970675,2.27404904,200.06,199.96,7.43]
[1756692970877,3.56928093,200.13,199.96,7.43]
[1756692971082,3.56928093,200.13,199.99,7.43]
[1756692971282,2.41479447,200.12,199.99,7.43]
[1756692971484,2.27479447,200.11,199.99,7.43]
[1756692971793,2.27479447,200.1,199.99,7.43]
[1756692971995,2.27479447,200.09,199.99,7.43]
[1756692972184,2.27479447,200.08,199.99,7.43]
[1756692972384,3.56928093,200.11,199.99,7.43]
[1756692972683,2.27246415,200.1,199.99,7.43]
[1756692972883,2.27246415,200.09,199.99,7.43]
[1756692973189,2.2729219,200.08,199.99,7.43]
[1756692973385,3.56928093,200.11,199.99,7.43]
[1756692973578,2.27276633,200.1,199.99,7.43]
[1756692973783,2.27276633,200.09,199.99,7.43]
[1756692974089,3.56928093,200.14,199.99,7.43]
[1756692974290,2.27329855,200.13,199.99,7.43]
[1756692974492,2.27329855,200.12,200.0,3.56928093]
[1756692974693,2.27329855,200.11,200.01,7.43]
[1756692974888,0.14,200.16,200.01,7.43]
[1756692975091,2.27400878,200.15,200.01,7.43]
[1756692975289,2.27400878,200.14,200.01,7.43]
[1756692975488,2.27400878,200.13,200.01,7.43]
[1756692975689,2.27400878,200.12,200.01,7.43]
[1756692975886,2.27400878,200.11,200.01,7.43]
[1756692976082,0.14,200.16,200.01,7.43]
[1756692976293,3.56928093,200.14,200.01,7.43]
[1756692976486,3.56928093,200.11,200.01,7.43]
[1756692976788,2.27475734,200.1,200.01,7.43]
[1756692976992,2.27475734,200.09,200.01,7.43]
[1756692977191,3.56928093,200.11,200.01,7.43]
[1756692977393,2.27565913,200.1,200.01,7.43]
[1756692977584,2.27565913,200.09,200.01,7.43]
[1756692977787,2.27565913,200.08,200.01,7.43]
[1756692977993,0.14,200.13,200.01,7.43]
[1756692978196,2.27624319,200.12,200.01,7.43]
[1756692978387,2.27624319,200.11,200.01,7.43]
[1756692978589,2.27624319,200.1,200.01,7.43]
[1756692978789,2.27624319,200.09,200.01,7.43]
[1756692978990,3.56928093,200.17,200.02,7.43]
[1756692979291,2.27785405,200.16,200.02,7.43]
[1756692979589,2.27785405,200.15,200.02,7.43]
[1756692979791,2.27785405,200.14,200.02,7.43]
[1756692979985,2.27785405,200.13,200.02,7.43]
[1756692980192,339.70928093,200.2,200.05,7.43]
[1756692980386,2.27601886,200.19,200.05,7.43]
[1756692980591,2.27601886,200.18,200.05,7.43]
[1756692980794,339.70928093,200.2,200.05,7.43]
[1756692981093,2.27503907,200.19,200.05,7.43]
[1756692981290,339.70928093,200.2,200.05,7.43]
[1756692981491,2.27202488,200.19,200.05,7.43]
[1756692981794,336.14,200.2,200.05,7.43]
[1756692981986,2.27195167,200.19,200.05,7.43]
[1756692982190,336.14,200.2,200.05,7.43]
[1756692983088,336.14,200.2,200.08,7.43]
[1756692983597,2.41024169,200.19,200.05,3.56928093]
[1756692983790,0.14,200.19,200.05,3.56928093]
[1756692986586,336.14,200.2,200.06,7.43]
[1756692986792,465.3,200.2,200.06,7.43]
[1756692987188,3.56928093,200.09,199.92,3.56928093]
[1756692987393,3.56928093,200.06,199.92,7.43]
[1756692987695,3.56928093,200.03,199.92,7.43]
[1756692987895,24.94,200.02,199.92,7.43]
[1756692988301,3.56928093,200.0,199.87,7.43]
[1756692988603,3.56928093,199.94,199.81,7.43]
[1756692988795,9.52,199.93,199.81,7.43]
[1756692989795,3.68928093,199.96,199.81,7.43]
[1756692989995,9.66,199.93,199.81,7.43]
[1756692990197,9.8,199.93,199.81,7.43]
[1756692992196,13.36928093,199.93,199.81,7.43]
[1756692992597,13.36928093,199.93,199.77,339.48928093]
[1756692993695,13.36928093,199.93,199.77,335.92]
[1756692994002,3.56928093,199.9,199.76,7.43]
[1756692995605,3.56928093,199.87,199.72,7.43]
[1756692995805,0.12,199.89,199.72,7.43]
[1756692996006,3.56928093,199.87,199.72,7.43]
[1756692996306,59.14,199.86,199.72,7.43]
[1756692996514,113.66,199.86,199.69,7.43]
[1756692996807,113.66,199.86,199.74,7.43]
[1756692997001,130.24,199.88,199.74,7.43]
[1756692997211,130.22,199.89,199.74,7.43]
[1756692997802,130.2,199.89,199.77,7.43]
[1756692998004,130.18,199.9,199.77,7.43]
[1756692998309,339.66928093,199.92,199.77,7.43]
[1756692998604,336.1,199.92,199.8,8.02]
[1756692998804,336.1,199.92,199.83,8.02]
[1756693001008,130.22,199.95,199.85,3.56928093]
[1756693001405,0.15,199.94,199.82,3.56928093]
[1756693001600,0.15,199.94,199.79,8.02]
[1756693003507,74.88,199.93,199.79,8.02]
[1756693004008,0.15,199.94,199.79,8.02]
[1756693004009,71.84,199.92,199.79,8.02]
[1756693004707,3.56928093,199.98,199.81,3.56928093]
[1756693004908,0.15,199.99,199.84,3.56928093]